fUSD/lending_fUSD_20260116
["ID","MTS","AMOUNT","RATE_DAILY","PERIOD"]
[402159980,1768553745019,-926.38,0.00040547,10]
[402159981,1768553745029,-1091.37,0.00040547,10]
[402159982,1768553745038,-934.74,0.00040547,10]
[402159983,1768553745047,-1096.7,0.00040547,10]
[402159984,1768553745057,-615.77,0.00040547,10]
[402159985,1768553745066,-694.36,0.00040547,10]
[402159986,1768553745075,-816.08,0.00040547,10]
[402159987,1768553745085,-703.54,0.00040547,10]
[402159988,1768553745094,-2000.78,0.00040547,10]
[402159989,1768553745103,-1150.42,0.00040547,10]
[402159990,1768553745113,-599.47863837,0.00040547,10]
[402159991,1768553745122,-658.36,0.00040547,10]
[402159992,1768553745132,-788.58,0.00040547,10]
[402159993,1768553745141,-578.18,0.00040547,10]
[402159994,1768553745150,-1428.02,0.00040547,10]
[402159995,1768553745160,-500.0,0.00040547,10]
[402159996,1768553745170,-705.82,0.00040547,10]
[402159997,1768553745179,-931.05,0.00040547,10]
[402159998,1768553745188,-577.64,0.00040547,10]
[402159999,1768553745197,-528.44,0.00040547,10]
[402160000,1768553745206,-2108.45,0.00040547,10]
[402160001,1768553745216,-1149.82,0.00040547,10]
[402160002,1768553745225,-500.0,0.00040547,10]
[402160003,1768553745234,-683.35,0.00040547,10]
[402160004,1768553745243,-959.04,0.00040547,10]
[402160005,1768553745253,-500.0,0.00040547,10]
[402160006,1768553745264,-700.17,0.00040547,10]
[402160007,1768553745273,-625.74,0.00040547,10]
[402160008,1768553745282,-754.4,0.00040547,10]
[402160009,1768553745291,-500.0,0.00040547,10]
[402160010,1768553745301,-737.5,0.00040547,10]
[402160011,1768553745312,-625.2,0.00040547,10]
[402160012,1768553745322,-641.84,0.00040547,10]
[402160013,1768553745332,-610.78,0.00040547,10]
[402160014,1768553745341,-544.89,0.00040547,10]
[402160015,1768553745351,-523.76,0.00040547,10]
[402160016,1768553745360,-637.87,0.00040547,10]
[402160017,1768553745369,-500.0,0.00040547,10]
[402160018,1768553745379,-551.65,0.00040547,10]
[402160019,1768553745388,-1594.08,0.00040547,10]
[402160020,1768553745397,-796.44,0.00040547,10]
[402160021,1768553745407,-500.0,0.00040547,10]
[402160022,1768553745416,-1146.06,0.00040547,10]
[402160023,1768553745426,-500.0,0.00040547,10]
[402160024,1768553745435,-567.16,0.00040547,10]
[402160025,1768553745445,-500.0,0.00040547,10]
[402160026,1768553745454,-522.75,0.00040547,10]
[402160027,1768553745464,-517.33,0.00040547,10]
[402160028,1768553745473,-500.0,0.00040547,10]
[402160029,1768553745483,-500.0,0.00040547,10]
[402160030,1768553745493,-751.2,0.00040547,10]
[402160031,1768553745505,-620.18128956,0.00040547,10]
[402160032,1768553745515,-662.29,0.00040547,10]
[402160033,1768553745524,-669.08,0.00040547,10]
[402160034,1768553745534,-500.0,0.00040547,10]
[402160035,1768553745543,-677.54,0.00040547,10]
[402160036,1768553745553,-1168.86,0.00040547,10]
[402160037,1768553745562,-1117.06,0.00040547,10]
[402160038,1768553745574,-1648.88,0.00040547,10]
[402160039,1768553745583,-636.52,0.00040547,10]
[402160040,1768553745593,-636.43,0.00040547,10]
[402160041,1768553745602,-575.94,0.00040547,10]
[402160042,1768553745611,-716.91,0.00040547,10]
[402160043,1768553745622,-876.77,0.00040547,10]
[402160044,1768553745631,-500.0,0.00040547,10]
[402160045,1768553745641,-990.78,0.00040547,10]
[402160046,1768553745654,-1150.93,0.00040547,10]
[402160047,1768553745663,-909.88,0.00040547,10]
[402160048,1768553745672,-541.15,0.00040547,10]
[402160049,1768553745683,-500.0,0.00040547,10]
[402160050,1768553745692,-527.48,0.00040547,10]
[402160051,1768553745704,-500.0,0.00040547,10]
[402160052,1768553745716,-744.14,0.00040547,10]
[402160053,1768553745726,-903.48,0.00040547,10]
[402160054,1768553745737,-507.96,0.00040547,10]
[402160055,1768553745747,-662.66,0.00040547,10]
[402160056,1768553745758,-690.13,0.00040547,10]
[402160057,1768553745769,-519.9,0.00040547,10]
[402160058,1768553745778,-1521.24,0.00040547,10]
[402160059,1768553745788,-823.6,0.00040547,10]
[402160060,1768553745798,-500.0,0.00040547,10]
[402160061,1768553745808,-500.0,0.00040547,10]
[402160062,1768553745817,-1331.43,0.00040547,10]
[402160063,1768553745826,-732.95,0.00040547,10]
[402160064,1768553745837,-1326.59,0.00040547,10]
[402160065,1768553745847,-1280.38,0.00040547,10]
[402160066,1768553745856,-791.99,0.00040547,10]
[402160067,1768553745866,-500.0,0.00040547,10]
[402160068,1768553745876,-512.72,0.00040547,10]
[402160069,1768553745885,-979.74,0.00040547,10]
[402160070,1768553745894,-500.0,0.00040547,10]
[402160071,1768553745904,-644.37,0.00040547,10]
[402160072,1768553745913,-577.2,0.00040547,10]
[402160073,1768553745923,-970.71,0.00040547,10]
[402160074,1768553745933,-570.0,0.00040547,10]
[402160075,1768553745942,-500.0,0.00040547,10]
[402160076,1768553745953,-500.0,0.00040547,10]
[402160077,1768553745962,-751.52,0.00040547,10]
[402160078,1768553745971,-1015.29,0.00040547,10]
[402160079,1768553745981,-685.85,0.00040547,10]
[402160080,1768553745991,-518.25,0.00040547,10]
[402160081,1768553746000,-612.29,0.00040547,10]
[402160082,1768553746010,-500.0,0.00040547,10]
[402160083,1768553746020,-806.51,0.00040547,10]
[402160084,1768553746030,-695.39,0.00040547,10]
[402160085,1768553746039,-607.83,0.00040547,10]
[402160086,1768553746049,-549.65,0.00040547,10]
[402160087,1768553746058,-500.0,0.00040547,10]
[402160088,1768553746067,-1220.06,0.00040547,10]
[402160089,1768553746077,-1662.06,0.00040547,10]
[402160090,1768553746086,-1639.22,0.00040547,10]
[402160091,1768553746095,-204.71559599,0.00040547,10]
[402160092,1768553746105,-908.6,0.00040547,10]
[402160093,1768553746114,-1617.91,0.00040547,10]
[402160094,1768553746123,-1143.12,0.00040547,10]
[402160095,1768553746133,-500.0,0.00040547,10]
[402160096,1768553746142,-816.75,0.00040547,10]
[402160097,1768553746152,-500.0,0.00040547,10]
[402160098,1768553746161,-500.0,0.00040547,10]
[402160099,1768553746170,-716.45,0.00040547,10]
[402160100,1768553746179,-500.0,0.00040547,10]
[402160101,1768553746189,-885.26,0.00040547,10]
[402160102,1768553746198,-640.32525322,0.00040547,10]
[402160103,1768553746207,-678.11,0.00040547,10]
[402160104,1768553746217,-1027.78,0.00040547,10]
[402160105,1768553746226,-1096.77,0.00040547,10]
[402160106,1768553746235,-702.08,0.00040547,10]
[402160107,1768553746244,-681.79,0.00040547,10]
[402160108,1768553746254,-1477.47,0.00040547,10]
[402160109,1768553746264,-500.0,0.00040547,10]
[402160110,1768553746273,-989.99,0.00040547,10]
[402160111,1768553746282,-676.3,0.00040547,10]
[402160112,1768553746291,-500.0,0.00040547,10]
[402160113,1768553746300,-500.0,0.00040547,10]
[402160114,1768553746309,-912.84,0.00040547,10]
[402160115,1768553746319,-807.54,0.00040547,10]
[402160116,1768553746328,-591.47,0.00040547,10]
[402160117,1768553746337,-1293.68,0.00040547,10]
[402160118,1768553746346,-565.12085093,0.00040547,10]
[402160119,1768553746355,-500.0,0.00040547,10]
[402160120,1768553746364,-618.86,0.00040547,10]
[402160121,1768553746373,-834.67,0.00040547,10]
[402160122,1768553746382,-500.0,0.00040547,10]
[402160123,1768553746391,-4949.68,0.00040547,10]
[402160124,1768553746401,-1730.65,0.00040547,10]
[402160125,1768553746410,-500.46,0.00040547,10]
[402160126,1768553746419,-930.98,0.00040547,10]
[402160127,1768553746429,-875.62,0.00040547,10]
[402160128,1768553746438,-500.0,0.00040547,10]
[402160129,1768553746447,-500.0,0.00040547,10]
[402160130,1768553746456,-1041.0,0.00040547,10]
[402160131,1768553746465,-500.0,0.00040547,10]
[402160132,1768553746861,-1262.31,0.00040547,10]
[402160133,1768553746922,-524.92,0.00040547,10]
[402160134,1768553746932,-591.83,0.00040547,10]
[402160135,1768553746943,-614.68,0.00040547,10]
[402160136,1768553746952,-432.1579278,0.00040547,10]
[402160137,1768553746963,-1848.72,0.00040547,10]
[402160138,1768553746973,-790.99,0.00040547,10]
[402160139,1768553746982,-500.0,0.00040547,10]
[402160140,1768553746992,-353.65,0.00040547,2]
[402160141,1768553747001,-1044.21,0.00040547,10]
[402160142,1768553747010,-339.16088027,0.00040547,10]
[402160143,1768553747020,-1947.44,0.00040547,10]
[402160144,1768553747029,-500.0,0.00040547,10]
[402160145,1768553747038,-629.32,0.00040547,10]
[402160146,1768553747047,-1553.42,0.00040547,10]
[402160147,1768553747057,-1024.82,0.00040547,10]
[402160148,1768553747066,-795.66,0.00040547,10]
[402160149,1768553747076,-1036.49,0.00040547,10]
[402160150,1768553747085,-1013.98,0.00040547,10]
[402160151,1768553747094,-875.71,0.00040547,10]
[402160152,1768553747105,-548.64,0.00040547,10]
[402160153,1768553747114,-562.25,0.00040547,10]
[402160154,1768553747124,-1422.5,0.00040547,10]
[402160155,1768553747133,-543.96,0.00040547,10]
[402160156,1768553747143,-1126.68,0.00040547,10]
[402160157,1768553747152,-2121.76,0.00040547,10]
[402160158,1768553747162,-532.76,0.00040547,10]
[402160159,1768553747173,-1905.23,0.00040547,10]
[402160160,1768553747183,-502.52,0.00040547,10]
[402160161,1768553747192,-540.07,0.00040547,10]
[402160162,1768553747201,-1016.35,0.00040547,10]
[402160163,1768553747211,-5056.94,0.00040547,10]
[402160164,1768553747220,-592.16,0.00040547,10]
[402160165,1768553747231,-889.56,0.00040547,10]
[402160166,1768553747240,-500.0,0.00040547,10]
[402160167,1768553747251,-1150.45,0.00040547,10]
[402160168,1768553747260,-648.45,0.00040547,10]
[402160169,1768553747270,-1345.33,0.00040547,10]
[402160170,1768553747280,-1052.14,0.00040547,10]
[402160171,1768553747290,-990.43,0.00040547,10]
[402160172,1768553747302,-877.08,0.00040547,10]
[402160173,1768553747312,-1245.81,0.00040547,10]
[402160174,1768553747323,-665.86,0.00040547,10]
[402160175,1768553747332,-1029.8,0.00040547,10]
[402160176,1768553747342,-1298.7,0.00040547,10]
[402160177,1768553747352,-581.72,0.00040547,10]
[402160178,1768553747361,-850.69,0.00040547,10]
[402160179,1768553747370,-995.5,0.00040547,10]
[402160180,1768553747379,-1075.5,0.00040547,10]
[402160181,1768553747389,-519.23,0.00040547,10]
[402160182,1768553747397,-529.03,0.00040547,10]
[402160183,1768553747407,-716.08,0.00040547,10]
[402160184,1768553747425,-500.0,0.00040547,10]
[402160185,1768553747435,-1363.31,0.00040547,10]
[402160186,1768553747444,-598.71,0.00040547,10]
[402160187,1768553747454,-1221.02,0.00040547,10]
[402160188,1768553747463,-823.04,0.00040547,10]
[402160189,1768553747471,-1064.34,0.00040547,10]
[402160190,1768553747480,-500.0,0.00040547,10]
[402160191,1768553747489,-2853.19,0.00040547,10]
[402160192,1768553747498,-913.43,0.00040547,10]
[402160193,1768553747507,-591.9,0.00040547,10]
[402160194,1768553747518,-500.0,0.00040547,10]
[402160195,1768553747528,-549.28,0.00040547,10]
[402160196,1768553747538,-2393.97,0.00040547,10]
[402160197,1768553747548,-589.47,0.00040547,10]
[402160198,1768553747558,-2257.21,0.00040547,10]
[402160199,1768553747567,-805.83,0.00040547,10]
[402160200,1768553747580,-546.1,0.00040547,10]
[402160201,1768553747590,-366.15297719,0.00040547,10]
[402160202,1768553747599,-1412.18,0.00040547,10]
[402160203,1768553747608,-500.0,0.00040547,10]
[402160204,1768553747618,-500.0,0.00040547,10]
[402160205,1768553747628,-500.0,0.00040547,10]
[402160206,1768553747637,-712.99,0.00040547,10]
[402160207,1768553747648,-661.07,0.00040547,10]
[402160208,1768553747658,-732.11,0.00040547,10]
[402160209,1768553747667,-693.86,0.00040547,10]
[402160210,1768553747676,-713.12,0.00040547,10]
[402160211,1768553747685,-1182.17,0.00040547,10]
[402160212,1768553747695,-652.47,0.00040547,10]
[402160213,1768553747704,-714.22,0.00040547,10]
[402160214,1768553747714,-652.5,0.00040547,10]
[402160215,1768553747723,-1245.62,0.00040547,10]
[402160216,1768553747733,-500.0,0.00040547,10]
[402160217,1768553747744,-1497.09,0.00040547,10]
[402160218,1768553747753,-1210.4,0.00040547,10]
[402160219,1768553747763,-1212.59,0.00040547,10]
[402160220,1768553747773,-941.66,0.00040547,10]
[402160221,1768553747783,-1223.9,0.00040547,10]
[402160222,1768553747793,-500.0,0.00040547,10]
[402160223,1768553747802,-1292.5,0.00040547,10]
[402160224,1768553747811,-1141.45,0.00040547,10]
[402160225,1768553747821,-885.86,0.00040547,10]
[402160226,1768553747830,-520.6,0.00040547,10]
[402160227,1768553747840,-3901.38,0.00040547,10]
[402160228,1768553747849,-532.57,0.00040547,10]
[402160229,1768553747858,-1219.5,0.00040547,10]
[402160230,1768553747867,-2909.8,0.00040547,10]
[402160231,1768553747876,-500.0,0.00040547,10]
[402160232,1768553747885,-858.87,0.00040547,10]
[402160233,1768553747895,-544.68,0.00040547,10]
[402160234,1768553747905,-993.01,0.00040547,10]
[402160235,1768553747914,-1760.07,0.00040547,10]
[402160236,1768553747926,-553.74,0.00040547,10]
[402160237,1768553747935,-1228.85,0.00040547,10]
[402160238,1768553747944,-500.0,0.00040547,10]
[402160239,1768553747954,-1541.19,0.00040547,10]
[402160240,1768553747964,-599.03,0.00040547,10]
[402160241,1768553747973,-1004.55,0.00040547,10]
[402160242,1768553747982,-1256.3,0.00040547,10]
[402160243,1768553747992,-722.08,0.00040547,10]
[402160244,1768553748001,-1627.41,0.00040547,10]
[402160245,1768553748011,-999.49,0.00040547,10]
[402160246,1768553748021,-1143.9,0.00040547,10]
[402160247,1768553748031,-1224.65,0.00040547,10]
[402160248,1768553748041,-560.6,0.00040547,10]
[402160249,1768553748051,-1155.7,0.00040547,10]
[402160250,1768553748060,-500.0,0.00040547,10]
[402160251,1768553748070,-614.31,0.00040547,10]
[402160252,1768553748079,-637.11,0.00040547,10]
[402160253,1768553748088,-2192.51,0.00040547,10]
[402160254,1768553748098,-2225.78,0.00040547,10]
[402160255,1768553748108,-758.24,0.00040547,10]
[402160256,1768553748117,-2013.58,0.00040547,10]
[402160257,1768553748126,-2864.87,0.00040547,10]
[402160258,1768553748136,-808.72,0.00040547,10]
[402160259,1768553748146,-1567.87,0.00040547,10]
[402160260,1768553748155,-518.17,0.00040547,10]
[402160261,1768553748164,-1811.28,0.00040547,10]
[402160262,1768553748173,-558.81,0.00040547,10]
[402160263,1768553748183,-1071.23,0.00040547,10]
[402160264,1768553748191,-1032.65,0.00040547,10]
[402160265,1768553748201,-659.01,0.00040547,10]
[402160266,1768553748209,-866.89,0.00040547,10]
[402160267,1768553748219,-759.31,0.00040547,10]
[402160268,1768553748228,-637.41,0.00040547,10]
[402160269,1768553748237,-1020.76,0.00040547,10]
[402160270,1768553748246,-1128.16,0.00040547,10]
[402160271,1768553748256,-547.39,0.00040547,10]
[402160272,1768553748265,-7210.62,0.00040547,10]
[402160273,1768553748274,-5211.07,0.00040547,10]
[402160274,1768553748283,-1681.96,0.00040547,10]
[402160275,1768553748293,-729.24,0.00040547,10]
[402160276,1768553748302,-1064.3,0.00040547,10]
[402160277,1768553748311,-5144.07,0.00040547,10]
[402160278,1768553748321,-521.48,0.00040547,10]
[402160279,1768553748330,-532.27,0.00040547,10]
[402160280,1768553748339,-1000.95,0.00040547,10]
[402160281,1768553748349,-2351.16,0.00040547,10]
[402160282,1768553748358,-1000.0,0.00040547,10]
[402160283,1768553748367,-672.3,0.00040547,10]
[402160284,1768553748375,-679.92,0.00040547,10]
[402160285,1768553748384,-642.7,0.00040547,10]
[402160286,1768553748393,-1048.19,0.00040547,10]
[402160287,1768553748402,-2044.82,0.00040547,10]
[402160288,1768553748411,-500.0,0.00040547,10]
[402160289,1768553748421,-735.56,0.00040547,10]
[402160290,1768553748431,-804.46,0.00040547,10]
[402160291,1768553748440,-500.0,0.00040547,10]
[402160292,1768553748450,-793.57,0.00040547,10]
[402160293,1768553748460,-1159.07,0.00040547,10]
[402160294,1768553748470,-2221.23,0.00040547,10]
[402160295,1768553748479,-580.85,0.00040547,10]
[402160296,1768553748489,-941.49,0.00040547,10]
[402160297,1768553748498,-599.94,0.00040547,10]
[402160298,1768553748508,-677.99,0.00040547,10]
[402160299,1768553748517,-379.4819213,0.00040547,10]
[402160300,1768553748526,-1202.41,0.00040547,10]
[402160301,1768553748535,-2033.16,0.00040547,10]
[402160302,1768553748544,-2114.42,0.00040547,10]
[402160303,1768553748554,-1524.13,0.00040547,10]
[402160304,1768553748563,-953.55,0.00040547,10]
[402160305,1768553748574,-556.39,0.00040547,10]
[402160306,1768553748585,-1013.89,0.00040547,10]
[402160307,1768553748593,-1302.19,0.00040547,10]
[402160308,1768553748603,-593.7,0.00040547,10]
[402160309,1768553748613,-859.25,0.00040547,10]
[402160310,1768553748622,-623.79,0.00040547,10]
[402160311,1768553748631,-1282.3,0.00040547,10]
[402160312,1768553748640,-500.0,0.00040547,10]
[402160313,1768553748650,-606.36,0.00040547,10]
[402160314,1768553748660,-1084.77,0.00040547,10]
[402160315,1768553748670,-781.44,0.00040547,10]
[402160316,1768553748679,-616.11,0.00040547,10]
[402160317,1768553748688,-907.52,0.00040547,10]
[402160318,1768553748697,-731.99,0.00040547,10]
[402160319,1768553748707,-849.36,0.00040547,10]
[402160320,1768553748716,-1477.23,0.00040547,10]
[402160321,1768553748725,-643.32,0.00040547,10]
[402160322,1768553748735,-500.0,0.00040547,10]
[402160323,1768553748744,-823.29,0.00040547,10]
[402160324,1768553748754,-802.79,0.00040547,10]
[402160325,1768553748763,-1029.59,0.00040547,10]
[402160326,1768553748772,-725.02,0.00040547,10]
[402160327,1768553748781,-2502.55,0.00040547,10]
[402160328,1768553748789,-713.0,0.00040547,10]
[402160329,1768553748798,-1172.78,0.00040547,10]
[402160330,1768553748807,-1013.39,0.00040547,10]
[402160331,1768553748816,-764.71,0.00040547,10]
[402160332,1768553748825,-761.36,0.00040547,10]
[402160333,1768553748834,-4884.35,0.00040547,10]
[402160334,1768553748843,-629.83,0.00040547,10]
[402160335,1768553748852,-704.6,0.00040547,10]
[402160336,1768553748862,-1262.69,0.00040547,10]
[402160337,1768553748871,-1064.4,0.00040547,10]
[402160338,1768553748880,-492.34,0.00040547,10]
[402160339,1768553748889,-564.83,0.00040547,10]
[402160340,1768553748898,-1260.28,0.00040547,10]
[402160341,1768553748907,-662.32,0.00040547,10]
[402160342,1768553748917,-1785.36,0.00040547,10]
[402160343,1768553748926,-1338.09,0.00040547,10]
[402160344,1768553748936,-750.48,0.00040547,10]
[402160345,1768553748945,-897.64,0.00040547,10]
[402160346,1768553748954,-500.0,0.00040547,10]
[402160347,1768553748964,-591.5,0.00040547,10]
[402160348,1768553748973,-1018.43,0.00040547,10]
[402160349,1768553748982,-747.98,0.00040547,10]
[402160350,1768553748993,-764.04,0.00040547,10]
[402160351,1768553749003,-240.29122989,0.00040547,10]
[402160352,1768553749012,-500.0,0.00040547,10]
[402160353,1768553749022,-500.0,0.00040547,10]
[402160354,1768553749031,-500.0,0.00040547,10]
[402160355,1768553749041,-6302.12,0.00040547,10]
[402160356,1768553749050,-1736.72,0.00040547,10]
[402160357,1768553749059,-505.41,0.00040547,10]
[402160358,1768553749068,-500.0,0.00040547,10]
[402160359,1768553749077,-1002.58,0.00040547,10]
[402160360,1768553749086,-667.66,0.00040547,10]
[402160361,1768553749095,-1041.6,0.00040547,10]
[402160362,1768553749105,-528.13,0.00040547,10]
[402160363,1768553749114,-848.85,0.00040547,10]
[402160364,1768553749124,-1353.3,0.00040547,10]
[402160365,1768553749133,-500.0,0.00040547,10]
[402160366,1768553749142,-1109.73,0.00040547,10]
[402160367,1768553749151,-500.0,0.00040547,10]
[402160368,1768553749160,-623.92,0.00040547,10]
[402160369,1768553749169,-737.24,0.00040547,10]
[402160370,1768553749178,-1021.74,0.00040547,10]
[402160371,1768553749188,-935.75,0.00040547,10]
[402160372,1768553749199,-539.09,0.00040547,10]
[402160373,1768553749209,-907.64,0.00040547,10]
[402160374,1768553749219,-535.61,0.00040547,10]
[402160375,1768553749228,-664.49,0.00040547,10]
[402160376,1768553749239,-686.98,0.00040547,10]
[402160377,1768553749254,-1173.84,0.00040547,10]
[402160378,1768553749263,-600.0,0.00040548,30]
[402160379,1768553749272,-150.0,0.00040551,7]
[402160380,1768553749282,-150.0,0.00040572,7]
[402160381,1768553749292,-238.90934185,0.00040588,7]
[402160382,1768553749303,-200.06159783,0.00040588,7]
[402160383,1768553749314,-162.8115885,0.00040588,7]
[402160384,1768553749324,-214.36344643,0.00040588,7]
[402160385,1768553749339,-203.67457519,0.00040588,7]
[402160386,1768553749352,-303.49476013,0.00040588,7]
[402160387,1768553749362,-167.99625046,0.00040588,7]
[402160388,1768553749371,-150.0,0.00040621,120]
[402160389,1768553749380,-150.0,0.00040627,120]
[402160390,1768553749389,-238.90934185,0.00040646,7]
[402160391,1768553749398,-200.06159783,0.00040646,7]
[402160392,1768553749408,-162.8115885,0.00040646,7]
[402160393,1768553749417,-214.36344643,0.00040646,7]
[402160394,1768553749427,-203.67457519,0.00040646,7]
[402160395,1768553749441,-303.49476013,0.00040646,7]
[402160396,1768553749450,-167.99625046,0.00040646,7]
[402160397,1768553749458,-150.0,0.00040671,7]
[402160398,1768553749467,-150.0,0.0004068,120]
[402160399,1768553749476,-150.0,0.00040688,7]
[402160400,1768553749485,-150.0,0.000407,7]
[402160401,1768553749494,-151.0,0.000407,120]
[402160402,1768553749503,-5029.0,0.000407,117]
[402160403,1768553749512,-120209.32593796,0.000407,27]
[402160404,1768553749521,-238.90934185,0.00040703,7]
[402160405,1768553749531,-200.06159783,0.00040703,7]
[402160406,1768553749540,-162.8115885,0.00040703,7]
[402160407,1768553749550,-214.36344643,0.00040703,7]
[402160408,1768553749559,-203.67457519,0.00040703,7]
[402160409,1768553749568,-303.49476013,0.00040703,7]
[402160410,1768553749581,-167.99625046,0.00040703,7]
[402160411,1768553749591,-150.0,0.00040722,7]
[402160412,1768553749601,-238.90934185,0.0004076,7]
[402160413,1768553749611,-200.06159783,0.0004076,7]
[402160414,1768553749619,-162.8115885,0.0004076,7]
[402160415,1768553749629,-214.36344643,0.0004076,7]
[402160416,1768553749638,-203.67457519,0.0004076,7]
[402160417,1768553749647,-303.49476013,0.0004076,7]
[402160418,1768553749657,-167.99625046,0.0004076,7]
[402160419,1768553749666,-150.0,0.00040775,7]
[402160420,1768553749676,-152.0,0.000408,120]
[402160421,1768553749685,-517.40087889,0.000408,120]
[402160422,1768553749694,-150.0,0.00040803,7]
[402160423,1768553749703,-150.0,0.00040809,7]
[402160424,1768553749712,-238.90934185,0.00040817,7]
[402160425,1768553749721,-200.06159783,0.00040817,7]
[402160426,1768553749730,-162.8115885,0.00040817,7]
[402160427,1768553749739,-214.36344643,0.00040817,7]
[402160428,1768553749748,-203.67457519,0.00040817,7]
[402160429,1768553749758,-303.49476013,0.00040817,7]
[402160430,1768553749766,-167.99625046,0.00040817,7]
[402160431,1768553749777,-567.28,0.00040821,10]
[402160432,1768553749786,-1031.15,0.00040821,10]
[402160433,1768553749795,-808.21,0.00040821,10]
[402160434,1768553749804,-813.73,0.00040821,10]
[402160435,1768553749814,-973.06,0.00040821,10]
[402160436,1768553749823,-504.36,0.00040821,10]
[402160437,1768553749831,-674.01,0.00040821,10]
[402160438,1768553749841,-500.0,0.00040821,10]
[402160439,1768553749849,-1037.35,0.00040821,10]
[402160440,1768553749859,-525.62,0.00040821,10]
[402160441,1768553749868,-1211.73,0.00040821,10]
[402160442,1768553749877,-654.54,0.00040821,10]
[402160443,1768553749886,-902.4,0.00040821,10]
[402160444,1768553749895,-548.97,0.00040821,10]
[402160445,1768553749904,-915.0,0.00040821,10]
[402160446,1768553749919,-786.94,0.00040821,10]
[402160447,1768553749934,-1003.52,0.00040821,10]
[402160448,1768553749952,-837.95,0.00040821,10]
[402160449,1768553749971,-551.36,0.00040821,10]
[402160450,1768553749985,-548.17,0.00040821,10]
[402160451,1768553750004,-1196.74,0.00040821,10]
[402160452,1768553750022,-587.74,0.00040821,10]
[402160453,1768553750041,-1100.8,0.00040821,10]
[402160454,1768553750059,-1067.27,0.00040821,10]
[402160455,1768553750076,-826.56,0.00040821,10]
[402160456,1768553750092,-875.73,0.00040821,10]
[402160457,1768553750106,-866.61,0.00040821,10]
[402160458,1768553750126,-542.86,0.00040821,10]
[402160459,1768553750138,-513.96,0.00040821,10]
[402160460,1768553750156,-853.02,0.00040821,10]
[402160461,1768553750173,-568.61,0.00040821,10]
[402160462,1768553750188,-625.29,0.00040821,10]
[402160463,1768553750202,-503.47,0.00040821,10]
[402160464,1768553750218,-1479.39,0.00040821,10]
[402160465,1768553750233,-668.37,0.00040821,10]
[402160466,1768553750249,-554.51,0.00040821,10]
[402160467,1768553750262,-823.81,0.00040821,10]
[402160468,1768553750279,-522.66,0.00040821,10]
[402160469,1768553750293,-632.8,0.00040821,10]
[402160470,1768553750308,-760.77,0.00040821,10]
[402160471,1768553750322,-540.98,0.00040821,10]
[402160472,1768553750337,-240.92914214,0.00040821,10]
[402160473,1768553750350,-513.95,0.00040821,10]
[402160474,1768553750364,-543.44,0.00040821,10]
[402160475,1768553750378,-766.12,0.00040821,10]
[402160476,1768553750393,-745.1,0.00040821,10]
[402160477,1768553750408,-602.84,0.00040821,10]
[402160478,1768553750426,-681.64,0.00040821,10]
[402160479,1768553750441,-946.6,0.00040821,10]